Cogmind - Beta 13 @@@ ROGUE MODE // 2024.06.15 @ 06:20:43 Player: doughoff Result: Self-destructed Performance ------------- Evolutions (5) 2500 Regions Visited (10) 2000 Robots Destroyed (147) 735 Value Destroyed (4118) 4118 Prototype IDs (30) 600 Alien Tech Used (0) 0 Bonus (3029) 3029 TOTAL SCORE: 12982 Bonus ------- High Alert Combat Kills 233 Follower Combat Kills 1696 Aligned with FarCom 300 Built Enhanced Grunts 300 Met R17 at Cetus 500 Cogmind --------- Core Integrity 892/1000 Matter 300/300 Energy 335/335 System Corruption 13% Temperature Cool (0) Movement Rolling (86) Location -5/Factory Parts ------- > --- POWER (2) -------- Light Ion Engine Reinforced Fission Core > --- PROPULSION (6) --- Wheel Wheel Wheel Wheel Compact Wheel Compact Wheel > --- UTILITY (7) ------ Medium Storage Unit Enhanced Optical Array Advanced Terrain Scan Processor Improved Melee Analysis Suite Improved Melee Analysis Suite Actuator Array Improved Medium Armor Plating > --- WEAPON (2) ------- Ripper Spear > --- INVENTORY (10) --- Angular Momentum Engine Gravmag System Microactuators Actuator Array Rocket Launcher Field Lobotomy Kit (3) Axe Spear Spear Peak State ------------ > --- POWER ------------ Angular Momentum Engine Light Angular Momentum Engine > --- PROPULSION ------- Carbon-fiber Leg Carbon-fiber Leg Wheel Antigrav System Antigrav System Antigrav System > --- UTILITY ---------- Medium Storage Unit Enhanced Optical Array Advanced Terrain Scan Processor Improved Melee Analysis Suite Improved Melee Analysis Suite Centrium Medium Armor Plating Hacking Suite > --- WEAPON ----------- Katana Ripper > --- INVENTORY -------- Light Deuterium Engine Gravmag System Microactuators Actuator Array Actuator Array Rocket Launcher Field Lobotomy Kit Spear Spear Spear [Rating: 76] Favorites ----------- Power Light Nuclear Core Engine Improved Deuterium Engine Power Core Light Nuclear Core Propulsion Improved Titanium Leg Treads Light Treads Leg Improved Titanium Leg Wheel Wheel Hover Unit Gravmag System Flight Unit Improved Cesium-ion Thruster Utility Improved Melee Analysis Suite Device Hardlight Generator Storage Large Storage Unit Processor Improved Melee Analysis Suite Hackware Hacking Suite Protection Improved Light Armor Plating Weapon Spear Energy Gun Beam Rifle Energy Cannon Light EM Pulse Cannon Ballistic Gun Assault Rifle Ballistic Cannon Improved Light Cannon Launcher Long-range Missile Launcher Special Weapon Field Lobotomy Kit Impact Weapon Heavy Flail Slashing Weapon Great Axe Piercing Weapon Spear Build | -11 -10 -10 -10 -9 -8 -7 -6 -6 -6 -5 ------- Run | Yrd Mat Min Exi Min Mat Fac Fac Ext Cet Fac Slots Evolved 10 | . . . . . 4 2 2 . . 2 Power 1 | . . . . . . 1 . . . . Propulsion 4 | . . . . . 3 . . . . 1 Utility 5 | . . . . . 1 1 2 . . 1 Weapon . | . . . . . . . . . . . Parts Attached 239 | 7 14 9 . 3 38 64 14 64 9 17 Power 37 | 1 2 1 . . 4 12 2 10 1 4 Engine 17 | 1 2 1 . . . 3 1 5 1 3 Core 20 | . . . . . 4 9 1 5 . 1 Reactor . | . . . . . . . . . . . Propulsion 92 | 2 4 3 . . 12 32 6 21 3 9 Treads 2 | . . . . . . 1 1 . . . Leg 46 | 2 4 2 . . 8 14 . 14 2 . Wheel 28 | . . 1 . . 4 9 5 2 1 6 Hover 13 | . . . . . . 5 . 5 . 3 Flight 3 | . . . . . . 3 . . . . Utility 47 | 2 3 1 . . 9 13 5 11 . 3 Device 10 | 1 1 . . . 1 3 1 2 . 1 Storage 5 | 1 1 . . . 1 . 1 1 . . Processor 7 | . . 1 . . 1 2 . 3 . . Hackware 2 | . . . . . . . . 2 . . Protection 23 | . 1 . . . 6 8 3 3 . 2 Artifact . | . . . . . . . . . . . Weapon 63 | 2 5 4 . 3 13 7 1 22 5 1 Energy Gun 5 | 1 3 . . . 1 . . . . . Energy Cannon 6 | . 1 1 . 1 3 . . . . . Ballistic Gun 9 | 1 1 1 . 1 3 . . 1 1 . Ballistic Cannon 1 | . . . . . 1 . . . . . Launcher 6 | . . 1 . 1 . . . 3 1 . Special Weapon 6 | . . 1 . . . . . 5 . . Impact Weapon 4 | . . . . . 3 . . 1 . . Slashing Weapon 16 | . . . . . . 5 1 7 3 . Piercing Weapon 10 | . . . . . 2 2 . 5 . 1 Special Melee Weapon . | . . . . . . . . . . . Unidentified Prototypes 7 | . . . . . . 5 . . 1 1 Corrupted Parts 4 | . . . . . . 2 . 1 1 . System Corruption 17 | . . . . . . 13 . 1 3 . Parts Lost 81 | . 3 7 . . 15 17 9 18 2 10 Power 13 | . . 1 . . 3 3 1 4 . 1 Propulsion 37 | . 2 2 . . 4 9 4 8 2 6 Utility 13 | . . . . . 3 2 3 3 . 2 Weapon 18 | . 1 4 . . 5 3 1 3 . 1 Highest Loss Streak 8 | . 1 3 . . 6 5 8 4 2 7 To Critical Strikes 4 | . . . . . . . . 2 . 2 Average Slot Usage (%) 88 | . 98 83 71 100 75 87 92 93 88 86 Engine 5 | . 14 13 14 14 1 3 . 4 10 9 Core 5 | . . . . . 5 9 11 7 . . Leg 20 | . 26 12 14 14 20 26 . 22 2 8 Wheel 5 | . . 9 14 14 4 3 24 6 5 9 Hover 1 | . . . . . . . . . 16 3 Device 3 | . 5 . . . . 6 4 2 . 1 Storage 8 | . 14 14 14 14 9 7 6 6 6 5 Processor 10 | . . 12 14 14 5 3 13 20 26 23 Hackware 1 | . . . . . . . . 5 6 3 Protection 7 | . 8 1 . . 10 11 10 2 . 4 Energy Gun 1 | . 8 . . . . . . . . . Energy Cannon 1 | . 4 9 . 3 1 . . . . . Ballistic Gun 2 | . 14 3 . 14 6 . . . . . Slashing Weapon 4 | . . . . . . 6 13 4 12 9 Piercing Weapon 3 | . . . . . 5 4 . 4 . 1 Naked Turns . | . . . . . . . . . . . Heaviest Build 75 | 15 34 35 25 31 44 58 75 70 40 51 Greatest Support 100 | 20 20 20 16 16 95 95 52 100 45 72 Greatest Overweight (x) 11 | . 1 3 1 1 11 5 5 7 3 11 Average Overweight (x) . | . . 1 1 1 1 . 1 . 2 1 Largest Inventory Capacity 20 | 8 15 15 15 15 15 15 20 20 10 10 Average Capacity 14 | 7 9 15 15 15 15 15 16 19 10 10 Most Carried 20 | 5 11 12 9 8 15 15 19 20 10 10 Average Carried 13 | 4 7 10 8 7 11 14 15 18 9 9 Final Capacity 20 | 8 15 15 15 15 15 15 20 10 10 10 Final Carried 19 | 5 11 7 9 8 15 15 19 10 10 9 Class Distribution -------------------- 49% | Mutant 19% | Scavenger-Gladiator 10% | Scavenger-Mutant 9% | Gladiator 6% | Scavenger-Assassin 3% | Commander-Gladiator Dominant Class ---------------- Mutant | -10/Materials Mutant | -10/Mines Mutant | -10/Exiles Mutant | -9/Mines Mutant | -8/Materials Mutant | -7/Factory Scavenger-Gladiator | -6/Factory Scavenger-Gladiator | -6/Extension Commander-Gladiator | -6/Cetus Scavenger-Gladiator | -5/Factory Resources | -11 -10 -10 -10 -9 -8 -7 -6 -6 -6 -5 ----------- Run | Yrd Mat Min Exi Min Mat Fac Fac Ext Cet Fac Matter Collected 3272 | 279 207 169 . 33 644 723 144 777 157 139 Remotely . | . . . . . . . . . . . Salvage Created 6297 | 28 378 106 . . 1190 2506 309 1120 63 597 Parts 350 | 4 28 4 . . 60 125 26 73 1 29 Haulers Intercepted 7 | . . . . . 1 3 . 1 . 2 Recyclers Shooed 2 | . . . . . 2 . . . . . Parts Field Recycled . | . . . . . . . . . . . Retrieved Matter . | . . . . . . . . . . . Parts Self-Destructed . | . . . . . . . . . . . Prevented . | . . . . . . . . . . . Kills | -11 -10 -10 -10 -9 -8 -7 -6 -6 -6 -5 ------- Run | Yrd Mat Min Exi Min Mat Fac Fac Ext Cet Fac Combat Hostiles Destroyed 94 | . 11 3 . . 22 34 3 15 1 5 Melee 65 | . . . . . 11 34 3 11 1 5 Guns 17 | . 11 1 . . 5 . . . . . Cannons 5 | . . 1 . . 4 . . . . . AOE 6 | . . 1 . . 1 . . 4 . . Classes Destroyed 16 | 1 3 1 . . 6 4 1 . . . Worker 11 | . . . . . . 7 2 . . 2 Builder 18 | . . . . . 3 5 2 6 . 2 Tunneler 5 | 1 . . . . . 4 . . . . Hauler 7 | . . . . . 1 3 . 1 . 2 Recycler 13 | . 1 . . . 4 5 . 2 . 1 Mechanic 1 | . . . . . . . 1 . . . Operator 1 | . . . . . . 1 . . . . Watcher 3 | . . . . . 1 . . 2 . . Swarmer 26 | . 6 . . . 7 2 . 8 . 3 Grunt 30 | . 5 2 . . 7 14 . 2 . . Brawler 3 | . . . . . . 1 . 1 . 1 Duelist 2 | . . . . . 1 . . . . 1 Sentry 13 | . . . . . 5 5 1 2 . . Hunter 7 | . . . . . 2 1 2 2 . . Programmer 6 | . . . . . . 6 . . . . Cetus Guard 1 | . . . . . . . . . 1 . Assembled 6 | . . 1 . . . 5 . . . . Best Kill Streak 6 | 1 3 2 . . 4 6 4 5 1 4 Combat Bots Only 5 | . 3 2 . . 4 5 1 4 1 2 Max Kills in Single Turn 3 | 1 2 1 . . 1 1 1 3 1 1 Gunslinging 1 | . 1 . . . . . . . . . Exploded 3 | . . 1 . . 1 . . 3 . . Melee 1 | . . . . . 1 1 1 1 1 1 Uniques/NPCs Destroyed . | . . . . . . . . . . . Combat | -11 -10 -10 -10 -9 -8 -7 -6 -6 -6 -5 -------- Run | Yrd Mat Min Exi Min Mat Fac Fac Ext Cet Fac Hostile Shots Fired 1149 | . 63 48 . . 197 390 137 201 13 100 Missed 323 | . 15 18 . . 39 107 46 67 5 26 Damage Taken 12022 | . 566 749 . . 2017 3694 1215 2075 305 1401 Core 1841 | . 81 135 . . 438 496 203 273 107 108 Absorbed by Shields 466 | . . . . . . 184 . 282 . . Core Remaining (%) 38 | 100 . . . 13 20 29 . . 31 . Volleys Fired 152 | 3 44 18 . . 57 . . 30 . . Largest 2 | 2 2 2 . . 2 . . 1 . . Hottest 100 | 70 70 100 . . 95 . . 43 . . Shots Fired 243 | 6 87 23 . . 97 . . 30 . . Gun 160 | 6 85 7 . . 62 . . . . . Cannon 42 | . 2 5 . . 35 . . . . . Launcher 12 | . . 2 . . . . . 10 . . Special 29 | . . 9 . . . . . 20 . . Kinetic 134 | 3 45 7 . . 79 . . . . . Thermal 72 | 3 40 9 . . 7 . . 13 . . Explosive 12 | . . 2 . . . . . 10 . . Electromagnetic 18 | . 2 5 . . 11 . . . . . Robot Hit Streak 16 | 1 9 12 . . 16 . . 6 . . Robot Miss Streak 3 | 1 2 1 . . 3 . . 2 . . Penetration Max 1 | . . . . . 1 . . . . . Secondary Targets 1 | . 1 . . . . . . . . . Max Gunslinging Chain 1 | . 1 . . . . . . . . . Shots Hit Robots 417 | 3 61 12 . . 104 127 22 53 7 28 Core Hits 183 | 1 20 4 . . 45 56 10 34 2 11 Critical Kills . | . . . . . . . . . . . Critical Parts Destroyed 1 | . . . . . 1 . . . . . Critical Strikes 39 | 1 2 1 . . 4 18 4 4 . 5 Burn 4 | 1 2 . . . 1 . . . . . Destroy 1 | . . . . . 1 . . . . . Corrupt 1 | . . 1 . . . . . . . . Smash 1 | . . . . . 1 . . . . . Sever 21 | . . . . . . 12 4 2 . 3 Impale 11 | . . . . . 1 6 . 2 . 2 Melee Attacks 426 | . . . . . 49 223 37 63 19 35 Impact 14 | . . . . . 14 . . . . . Slashing 245 | . . . . . . 144 37 20 19 25 Piercing 167 | . . . . . 35 79 . 43 . 10 Sneak Attacks 67 | . . . . . 7 29 6 14 . 11 Combat Hostiles 5 | . . . . . 1 2 . 1 . 1 Follow-up Attacks 30 | . . . . . 6 12 3 4 . 5 Damage Inflicted 14907 | 35 792 212 . . 2786 6050 1156 2417 252 1207 Guns 1615 | 35 765 71 . . 744 . . . . . Cannons 695 | . 22 116 . . 557 . . . . . Explosions 623 | . . 25 . . 209 . . 389 . . Melee 11960 | . . . . . 1276 6050 1156 2019 252 1207 Ramming 14 | . 5 . . . . . . 9 . . Kinetic 1583 | 10 411 71 . . 1091 . . . . . Thermal 646 | 25 354 . . . 267 . . . . . Explosive 414 | . . 25 . . . . . 389 . . Electromagnetic 290 | . 22 116 . . 152 . . . . . Impact 388 | . . . . . 388 . . . . . Slashing 7262 | . . . . . . 4372 1156 755 252 727 Piercing 4310 | . . . . . 888 1678 . 1264 . 480 Highest Corruption 34 | . 2 2 2 2 . 34 . 5 8 13 Average Corruption 6 | . 2 2 2 2 . 11 . 2 5 6 Corruption Purged . | . . . . . . . . . . . Corruption Blocked . | . . . . . . . . . . . Effects 231 | . 27 10 4 1 . 117 . 47 16 9 Message Errors 53 | . 4 4 1 . . 28 . 11 3 2 Matter Fused 50 | . 4 4 2 . . 26 . 9 4 1 Heat Flow Errors 29 | . 4 . . . . 17 . 6 1 1 Energy Discharges 34 | . 2 1 1 . . 17 . 9 2 2 Parts Rejected 5 | . 2 . . . . 2 . . 1 . Parts Fused 2 | . . 1 . . . . . . 1 . Data Loss (minor) 39 | . 5 . . 1 . 23 . 4 4 2 Data Loss (major) 10 | . 2 . . . . 2 . 6 . . Misfires 3 | . 3 . . . . . . . . . Alerts 6 | . 1 . . . . 2 . 2 . 1 Overload Shots . | . . . . . . . . . . . Overflow Damage 1411 | . . . . . 58 746 103 197 . 307 Projectiles . | . . . . . . . . . . . Explosions . | . . . . . . . . . . . Melee 1411 | . . . . . 58 746 103 197 . 307 Knockbacks 7 | . . . . . 7 . . . . . Impact 3 | . . . . . 3 . . . . . Kinetic 3 | . . . . . 3 . . . . . Secondary 1 | . . . . . 1 . . . . . Self-Inflicted Damage 248 | . . . . . 51 . . 197 . . Shots 4 | . . . . . 1 . . 3 . . Rammed . | . . . . . . . . . . . Targets Rammed 2 | . 1 . . . . . . 1 . . Kicked 2 | . 1 . . . . . . 1 . . Crushed . | . . . . . . . . . . . Highest Temperature 300 | 18 300 160 . . 246 276 4 199 146 120 Average Temperature 97 | 9 117 67 . . 91 104 3 86 94 65 Received Heat Transfer 2235 | . 240 71 . . 522 938 102 308 27 27 Effects 6 | . 3 . . . 3 . . . . . Energy Bleed 3 | . 3 . . . . . . . . . Interference 3 | . . . . . 3 . . . . . Siege Activations . | . . . . . . . . . . . Robots Corrupted . | . . . . . . . . . . . Combat Hostiles . | . . . . . . . . . . . Parts Fried . | . . . . . . . . . . . Impact Corruptions 2 | . . . . . 2 . . . . . Robots Melted . | . . . . . . . . . . . Combat Hostiles . | . . . . . . . . . . . Parts Melted 3 | . 2 . . . 1 . . . . . Heat Transferred 1754 | 148 1184 . . . 422 . . . . . Parts Sabotaged . | . . . . . . . . . . . Parts Stolen . | . . . . . . . . . . . Parts Stripped . | . . . . . . . . . . . Power Chain Reactions 2 | . . . . . 2 . . . . . Alert | -11 -10 -10 -10 -9 -8 -7 -6 -6 -6 -5 ------- Run | Yrd Mat Min Exi Min Mat Fac Fac Ext Cet Fac Peak Influence 781 | 5 308 55 . . 223 781 456 649 736 558 Initial 381 | . 3 11 . . . 100 381 143 363 299 Average 231 | 1 89 17 . . 71 290 356 240 510 293 Maximum Alert Level 3 | . 1 . . . 1 3 2 2 3 2 Low Security (%) 54 | 100 91 100 . 100 99 54 . 37 . 6 Level 1 24 | . 8 . . . . 10 54 53 25 90 Level 2 18 | . . . . . . 30 45 9 71 3 Level 3 1 | . . . . . . 4 . . 3 . Level 4 . | . . . . . . . . . . . Level 5 . | . . . . . . . . . . . High Security . | . . . . . . . . . . . Max Security . | . . . . . . . . . . . Squads Dispatched 24 | . 3 . . . 2 9 1 3 1 5 Investigation 4 | . . . . . . 1 1 1 1 . Extermination 8 | . . . . . . 7 . . . 1 Reinforcement 9 | . 3 . . . 2 1 . 2 . 1 Assault . | . . . . . . . . . . . Garrison 3 | . . . . . . . . . . 3 Intercept . | . . . . . . . . . . . Searches Triggered . | . . . . . . . . . . . Construction Impeded 4 | . . . . . 1 . . 2 . 1 Haulers Reinforced . | . . . . . . . . . . . Active Scanning Responses . | . . . . . . . . . . . Cargo Convoy Interrupts . | . . . . . . . . . . . Stealth | -11 -10 -10 -10 -9 -8 -7 -6 -6 -6 -5 --------- Run | Yrd Mat Min Exi Min Mat Fac Fac Ext Cet Fac Distress Signals 11 | . 1 . . . 3 3 . 4 . . Communications Jammed . | . . . . . . . . . . . Distress Signals . | . . . . . . . . . . . Times Spotted 199 | . 26 11 . . 30 64 5 34 13 16 Peak Tracking Total 8 | . 6 6 . . 5 8 2 6 5 5 Tactical Retreats 30 | . 4 1 . . . 15 1 5 . 4 Traps | -11 -10 -10 -10 -9 -8 -7 -6 -6 -6 -5 ------- Run | Yrd Mat Min Exi Min Mat Fac Fac Ext Cet Fac Traps Triggered 10 | . 2 . . . . 5 . 3 . . Indirectly . | . . . . . . . . . . . Trap Hack Attempts . | . . . . . . . . . . . Triggered . | . . . . . . . . . . . Disarmed . | . . . . . . . . . . . Reprogrammed . | . . . . . . . . . . . Reused . | . . . . . . . . . . . Traps Extracted . | . . . . . . . . . . . Installed . | . . . . . . . . . . . Triggered . | . . . . . . . . . . . Machines | -11 -10 -10 -10 -9 -8 -7 -6 -6 -6 -5 ---------- Run | Yrd Mat Min Exi Min Mat Fac Fac Ext Cet Fac Machines Disabled 7 | . 1 . . . 1 . . 4 1 . Max in Single Turn 2 | . 1 . . . 1 . . 2 . . Energy Cycler 2 | . . . . . . . . 2 . . Machines Repaired . | . . . . . . . . . . . Machines Dismantled . | . . . . . . . . . . . Machines Sabotaged . | . . . . . . . . . . . Overloaded Fab Kills . | . . . . . . . . . . . Hacking | -11 -10 -10 -10 -9 -8 -7 -6 -6 -6 -5 --------- Run | Yrd Mat Min Exi Min Mat Fac Fac Ext Cet Fac Machines Accessed 9 | . 1 . 1 . . 1 2 3 1 . Terminals 4 | . . . . . . 1 . 2 1 . Fabricators 1 | . . . . . . . 1 . . . Repair Stations . | . . . . . . . . . . . Recycling Units 2 | . 1 . . . . . . 1 . . Scanalyzers 1 | . . . . . . . 1 . . . Garrison Access . | . . . . . . . . . . . Total Hacks 19 | . 1 . 1 . . 2 5 7 3 . Successful 10 | . 1 . 1 . . 2 3 3 . . Failed 9 | . . . . . . . 2 4 3 . Catastrophic 1 | . . . . . . . . . 1 . Database Lockouts . | . . . . . . . . . . . Manual 7 | . . . 1 . . 1 . . 5 . Terminals 10 | . . . . . . 2 . 5 3 . Fabricators 3 | . . . . . . . 3 . . . Repair Stations . | . . . . . . . . . . . Recycling Units 3 | . 1 . . . . . . 2 . . Scanalyzers 2 | . . . . . . . 2 . . . Garrison Access . | . . . . . . . . . . . Terminal Hacks 4 | . . . 1 . . 2 . 1 . . Open Door 1 | . . . . . . . . 1 . . Alert Level 1 | . . . . . . 1 . . . . Zone Layout 1 | . . . . . . 1 . . . . Derelict Proto ID Bank 1 | . . . 1 . . . . . . . Fabricator Hacks 1 | . . . . . . . 1 . . . Load Schematic 1 | . . . . . . . 1 . . . Repair Station Hacks . | . . . . . . . . . . . Recycling Unit Hacks 3 | . 1 . . . . . . 2 . . Report Inventory 3 | . 1 . . . . . . 2 . . Scanalyzer 2 | . . . . . . . 2 . . . Insert Component 1 | . . . . . . . 1 . . . Analyze 1 | . . . . . . . 1 . . . Garrison Access Hacks . | . . . . . . . . . . . Unauthorized Hacks . | . . . . . . . . . . . Terminals . | . . . . . . . . . . . Fabricators . | . . . . . . . . . . . Repair Stations . | . . . . . . . . . . . Recycling Units . | . . . . . . . . . . . Scanalyzers . | . . . . . . . . . . . Garrison Access . | . . . . . . . . . . . Data Cores Recovered . | . . . . . . . . . . . Used . | . . . . . . . . . . . Hacking Detections 6 | . . . . . . . 2 3 1 . Full Trace Events 3 | . . . . . . . 1 1 1 . Feedback Events . | . . . . . . . . . . . Feedback Blocked . | . . . . . . . . . . . Robot Schematics Acquired . | . . . . . . . . . . . Robots Built . | . . . . . . . . . . . Authchips . | . . . . . . . . . . . Time . | . . . . . . . . . . . Total Robot Build Rating . | . . . . . . . . . . . Part Schematics Acquired 1 | . . . . . . . 1 . . . Parts Built . | . . . . . . . . . . . Authchips . | . . . . . . . . . . . Time . | . . . . . . . . . . . Total Part Build Rating . | . . . . . . . . . . . Parts Repaired . | . . . . . . . . . . . Time . | . . . . . . . . . . . Parts Recycled . | . . . . . . . . . . . Recycled Matter . | . . . . . . . . . . . Retrieved Matter . | . . . . . . . . . . . Retrieved Components . | . . . . . . . . . . . Parts Scanalyzed 1 | . . . . . . . 1 . . . Part Schematics Acquired 1 | . . . . . . . 1 . . . Parts Damaged . | . . . . . . . . . . . Bothacking | -11 -10 -10 -10 -9 -8 -7 -6 -6 -6 -5 ------------ Run | Yrd Mat Min Exi Min Mat Fac Fac Ext Cet Fac Used RIF Installer . | . . . . . . . . . . . Robots Hacked 2 | . . . . . . . . 2 . . Non-combat . | . . . . . . . . . . . Combat 2 | . . . . . . . . 2 . . Robot Hacks Applied 2 | . . . . . . . . 2 . . parse_system 2 | . . . . . . . . 2 . . Relay Couplers Released . | . . . . . . . . . . . Fabnet Peak Effective % . | . . . . . . . . . . . Robots Rewired 8 | . . . . . . . . 8 . . Allies Hacked 1 | . . . . . . . . 1 . . Hacks Repelled . | . . . . . . . . . . . Allies | -11 -10 -10 -10 -9 -8 -7 -6 -6 -6 -5 -------- Run | Yrd Mat Min Exi Min Mat Fac Fac Ext Cet Fac Total Allies 18 | . . . . . . . . 13 5 . Largest Group 12 | . . . . . . . . 12 7 6 Highest-Rated Group 642 | . . . . . . . . 542 642 511 Highest-Rated Ally 159 | . . . . . . . . 159 152 118 Total Orders 7 | . . . . . . . . 1 3 3 STAY 2 | . . . . . . . . . . 2 ROAM 1 | . . . . . . . . . 1 . FOLLOW 3 | . . . . . . . . 1 1 1 GUARD 1 | . . . . . . . . . 1 . Ally Attacks 205 | . . . . . . . . 108 65 32 Total Damage 7330 | . . . . . . . . 2880 3148 1302 Kills 38 | . . . . . . . . 19 12 7 Allies Corrupted . | . . . . . . . . . . . Allies Melted . | . . . . . . . . . . . Field Lobotomies 2 | . . . . . . . . 2 . . Intel | -11 -10 -10 -10 -9 -8 -7 -6 -6 -6 -5 ------- Run | Yrd Mat Min Exi Min Mat Fac Fac Ext Cet Fac Robot Analysis Total . | . . . . . . . . . . . Derelict Logs Recovered 1 | . . 1 . . . . . . . . Drone Launches . | . . . . . . . . . . . Drone Recoveries . | . . . . . . . . . . . Exploration | -11 -10 -10 -10 -9 -8 -7 -6 -6 -6 -5 ------------- Run | Yrd Mat Min Exi Min Mat Fac Fac Ext Cet Fac Turns Passed 14053 | 111 1529 697 266 140 1454 4899 661 2747 754 795 Spaces Moved 8193 | 73 904 461 231 115 675 2724 532 1608 503 367 Core 37 | 1 . . . . 35 . . . . 1 Treads 94 | . . . . . . 94 . . . . Legs 4297 | 72 904 111 . . 271 1621 . 1131 46 141 Wheels 3561 | . . 350 231 115 369 937 532 442 414 171 Hover 204 | . . . . . . 72 . 35 43 54 Flight . | . . . . . . . . . . . Fastest Speed 44 | 50 120 115 115 115 95 90 97 44 44 86 Average Speed 131 | 119 139 133 115 115 145 136 98 121 123 174 Slowest Speed 600 | 120 190 330 115 115 600 470 165 485 260 600 Overloaded Moves . | . . . . . . . . . . . Propulsion Burnouts . | . . . . . . . . . . . Robots Hopped . | . . . . . . . . . . . Cave-ins Triggered . | . . . . . . . . . . . Exploration Rate (%) 52 | 5 90 87 65 32 50 44 16 98 78 7 Regions Visited 10 Branch Regions 5 Pre-discovered Areas . | . . . . . . . . . . . Known Exits Taken 3 | . . 1 1 1 . . . . . . Unknown Exits Taken 7 | 1 1 . . . 1 1 1 1 1 . Scrap Searched 1 | . . . . 1 . . . . . . Spaces Dug 115 | . . 5 . . 5 47 5 53 . . Terrain Destroyed 230 | . . 16 . . 15 47 5 147 . . Melee 59 | . . . . . 5 47 5 2 . . Projectile 8 | . . 8 . . . . . . . . AOE 163 | . . 8 . . 10 . . 145 . . Terrain Rammed . | . . . . . . . . . . . Walls Destroyed . | . . . . . . . . . . . Machines Disabled . | . . . . . . . . . . . Actions | -11 -10 -10 -10 -9 -8 -7 -6 -6 -6 -5 --------- Run | Yrd Mat Min Exi Min Mat Fac Fac Ext Cet Fac Total 10554 | 87 1092 499 232 122 987 3557 614 2282 610 472 Wait 1308 | . 98 10 . 4 123 495 28 417 76 57 Move 8183 | 72 903 460 230 114 674 2723 531 1607 502 367 Hop . | . . . . . . . . . . . Pick Up 115 | 5 16 2 1 1 29 25 8 25 1 2 Fast Attach 103 | 7 7 . . . 15 33 7 16 6 12 Attach 61 | . 2 6 . 2 10 13 3 21 1 3 Detach 5 | . . . 1 . 1 2 . 1 . . Swap 75 | . 5 3 . 1 13 18 4 27 2 2 Drop 135 | . 16 . . . 23 51 5 32 6 2 Fire 152 | 3 44 18 . . 57 . . 30 . . Melee 365 | . . . . . 42 197 28 55 16 27 Ram . | . . . . . . . . . . . Kick 2 | . 1 . . . . . . 1 . . Crush . | . . . . . . . . . . . Escape Stasis 2 | . . . . . . . . 2 . . Rewire 48 | . . . . . . . . 48 . . Trap . | . . . . . . . . . . . Miscellaneous . | . . . . . . . . . . . Route ------- -11/Scrapyard -10/Materials (discovered 4 exits: *Mat x3 / [*Min]) -10/Mines (discovered 3 exits: *Mat x2 / *Exi) -10/Exiles -9/Mines -8/Materials (discovered 3 exits: *Fac x2 / *Sto) -7/Factory -6/Factory (discovered 2 exits: [*Low] / *Ext) -6/Extension (discovered 3 exits: [*Fac x2] / *Cet) -6/Cetus (discovered 3 exits: [*Fac x2] / [*Arc]) -5/Factory History --------- Turn | Location | Event 17 | -11/Scrapyard | Discovered new exit (range 15) 112 | -11/Scrapyard | Entered Materials 317 | -10/Materials | Build established: Mutant 625 | -10/Materials | Discovered new exit (range 13) 661 | -10/Materials | Discovered new exit (range 10) 733 | -10/Materials | Discovered new exit (range 16) 984 | -10/Materials | Discovered new exit (range 15) 1641 | -10/Materials | Entered Mines 1688 | -10/Mines | Discovered new exit (range 11) 1708 | -10/Mines | Identified exit to Materials 1836 | -10/Mines | Assembled infested the area 2005 | -10/Mines | Lost 3 parts (1n2w) 2009 | -10/Mines | Core integrity fell below 50% 2068 | -10/Mines | Discovered exit to Materials (range 10) 2167 | -10/Mines | Found a damaged Exp. Sensor Array with a note attached 2172 | -10/Mines | Found Prototype Device 2233 | -10/Mines | Learned 2 Materials zone layouts 2333 | -10/Mines | Deemed a non-threat by the Exiles lab entrance 2333 | -10/Mines | Discovered new exit (range 5) 2334 | -10/Mines | Core integrity fell below 20% 2337 | -10/Mines | Identified exit to Exiles 2338 | -10/Mines | Entered Exiles 2367 | -10/Exiles | Met 8R-AWN 2387 | -10/Exiles | Met EX-HEX 2421 | -10/Exiles | Met EX-BIN 2438 | -10/Exiles | Aligned with FarCom system 2439 | -10/Exiles | Given EX-Vault access code 2465 | -10/Exiles | Opened EX-Vault 2476 | -10/Exiles | Found Field Lobotomy Kit 2503 | -10/Exiles | Warned to stay clear of 0b10 Research branches 2532 | -10/Exiles | Met EX-DEC 2591 | -10/Exiles | Discovered new exit (range 14) 2602 | -10/Exiles | Identified exit to Mines 2604 | -10/Exiles | Left Exiles lab with Field Lobotomy Kit 2604 | -10/Exiles | Entered Mines 2611 | -9/Mines | Received a Rocket Launcher from a helpful Derelict 2728 | -9/Mines | Discovered new exit (range 14) 2742 | -9/Mines | Identified exit to Materials 2744 | -9/Mines | Entered Materials 2744 | -8/Materials | Evolved 4 slots: Propulsion x3, Utility x1 2745 | -8/Materials | Identified exit to Storage 2968 | -8/Materials | Lost 4 parts (1p2n1w) 3207 | -8/Materials | Core integrity fell below 50% 3234 | -8/Materials | Lost 6 parts (1p1n1u3w) 3380 | -8/Materials | Lost 4 parts (1p1n1u1w) 3787 | -8/Materials | Discovered new exit (range 3) 3999 | -8/Materials | Discovered new exit (range 16) 4198 | -8/Materials | Entered Factory 4198 | -7/Factory | Evolved 2 slots: Power x1, Utility x1 6321 | -7/Factory | Lost 3 parts (1p1n1w) 7331 | -7/Factory | Build established: Scavenger-Mutant 7997 | -7/Factory | System corruption reached 10% 8041 | -7/Factory | Lost 5 parts (1p3n1w) 8061 | -7/Factory | Build established: Gladiator 8379 | -7/Factory | Core integrity fell below 50% 8421 | -7/Factory | Lost 3 parts (1p2n) 8898 | -7/Factory | System corruption reached 30% 8956 | -7/Factory | Discovered new exit (range 9) 9097 | -7/Factory | Entered another Factory area 9097 | -6/Factory | Evolved 2 slots: Utility x2 9179 | -6/Factory | Discovered new exit (range 14) 9290 | -6/Factory | Build established: Scavenger-Gladiator 9667 | -6/Factory | Lost 8 parts (1p3n3u1w) 9746 | -6/Factory | Discovered new exit (range 13) 9758 | -6/Factory | Entered Extension 10152 | -6/Extension | Lost 4 parts (1p1n1u1w) 10415 | -6/Extension | Build established: Scavenger-Mutant 10673 | -6/Extension | Energy Cycler disabled 10673 | -6/Extension | Rescued a captive Derelict 10673 | -6/Extension | Rescued a captive Derelict 10673 | -6/Extension | Rescued a captive Derelict 10675 | -6/Extension | Rescued a captive Derelict 10678 | -6/Extension | Rescued a captive Derelict 10681 | -6/Extension | Rescued A7 10684 | -6/Extension | Rescued a captive Derelict 10685 | -6/Extension | Rescued a captive Derelict 10697 | -6/Extension | Rescued a captive Derelict 10864 | -6/Extension | Spotted B-75 Beast 10871 | -6/Extension | Spotted B-75 Beast 10874 | -6/Extension | Assimilated Y-54 Guardian with FLK Orb 10877 | -6/Extension | Assimilated B-75 Beast with FLK Orb 10879 | -6/Extension | Core integrity fell below 50% 10880 | -6/Extension | Discovered new exit (range 15) 10880 | -6/Extension | Allies destroyed B-75 Beast 10915 | -6/Extension | Lost 4 parts (1p1n1u1w) 11222 | -6/Extension | Build established: Scavenger-Assassin 11923 | -6/Extension | Lost 3 parts (1p2n) 11923 | -6/Extension | Lost 3 allies 12079 | -6/Extension | Discovered new exit (range 10) 12080 | -6/Extension | Discovered new exit (range 6) 12305 | -6/Extension | Build established: Scavenger-Gladiator 12333 | -6/Extension | Disrupted transfer network 12505 | -6/Extension | Entered Cetus 12505 | -6/Cetus | Accompanied by 6 allies (A7) 12510 | -6/Cetus | Acquired a Cetus Manufacturing Module code from A7 12510 | -6/Cetus | Spotted Cetus Guard 12510 | -6/Cetus | Spotted Cetus Guard 12510 | -6/Cetus | Spotted Cetus Guard 12510 | -6/Cetus | Spotted Cetus Guard 12521 | -6/Cetus | Allies destroyed Cetus Guard 12533 | -6/Cetus | Allies destroyed Cetus Guard 12542 | -6/Cetus | Allies destroyed Cetus Guard 12548 | -6/Cetus | Destroyed Cetus Guard 12561 | -6/Cetus | Lost 4 allies 12605 | -6/Cetus | Started Cetus Manufacturing Module 12630 | -6/Cetus | Manufactured an Enhanced Grunt 12655 | -6/Cetus | Manufactured an Enhanced Grunt 12680 | -6/Cetus | Manufactured an Enhanced Grunt 12705 | -6/Cetus | Manufactured an Enhanced Grunt 12730 | -6/Cetus | Manufactured an Enhanced Grunt 12820 | -6/Cetus | Discovered new exit (range 21) 12850 | -6/Cetus | Spotted Cetus Guard 12850 | -6/Cetus | Spotted Cetus Guard 12850 | -6/Cetus | Spotted Cetus Guard 12850 | -6/Cetus | Spotted Cetus Guard 12853 | -6/Cetus | Discovered new exit (range 21) 12859 | -6/Cetus | Allies destroyed Cetus Guard 12867 | -6/Cetus | Allies destroyed Cetus Guard 12874 | -6/Cetus | Allies destroyed Cetus Guard 12907 | -6/Cetus | Met Revision 17 13008 | -6/Cetus | Build established: Commander-Gladiator 13016 | -6/Cetus | Discovered new exit (range 21) 13259 | -6/Cetus | Entered Factory 13259 | -5/Factory | Accompanied by 6 allies (A7) 13259 | -5/Factory | Evolved 2 slots: Propulsion x1, Utility x1 13432 | -5/Factory | Build established: Scavenger-Gladiator 13815 | -5/Factory | Garrison activated, responded to threat 13866 | -5/Factory | Lost 3 parts (1p2n) 13888 | -5/Factory | System corruption reached 10% 13926 | -5/Factory | Lost 7 parts (4n2u1w) 14054 | -5/Factory | Self-destructed Last Messages --------------- 14018_ Destroyed Hvy. Laser. 14019_ Acquired 30 matter. 14025_ G-50 Soldier destroyed. 14027_ Chain reaction triggered in Lgt. Angular Momentum Engine. 14030_ G-50 Soldier destroyed. 14033_ Slug penetrates Wall. 14033_ Scanalyzer disabled. 14036_ Slug penetrates Scanalyzer. 14037_ Slug penetrates Enhanced Grunt. 14039_ System corrupted: Component data lost. 14039_ Slug penetrates Enhanced Grunt. 14039_ Enhanced Grunt overheating. 14040_ Enhanced Grunt heat damages Prototype Device, Adv. Heat Sink, Prototype Energy Cannon, Lyr. Medium Armor Plating. 14040_ Enhanced Grunt overheating. 14041_ Enhanced Grunt heat short circuits Prototype Energy Cannon. 14043_ Slug penetrates Wall. 14044_ Chain reaction triggered in Neutrino Core. 14046_ Slug penetrates Guardian 5a. [Achievement: Just Browsing] Map ----- +----------------------------------------------------+ | "" """ """ + """" """" # # """ #??????????????? | | "" """ """ # """" """" + + """ #??????????????? | | # """" """" # # #??????????????? | | "" """ """ # # # #??????????????? | | "" """ """ # + + #??????????????? | | "" """ """ # # ##+#####????##????????? | | ############## #?????? #????????? | | "" """ """ #????????????# #???? #????????? | | "" """ """ #????????????# #??"" """??????????? | | "" """ """ #????????????# # """ """ ?????????? | | #????????????# + """ """ ?????????? | | "" """ """ ########?????#### # "" #????????? | | "" """ """ R #????????# #??"" #????????? | | "" """ """ #????????# #???? #????????? | | #????????# #??????####????????? | | #????????# #??????????????????? | | ####### #????????# #??????????????????? | | ##########+### !! #????????# #??????????????????? | | ## !# ! ########## ###########????????? | | " ## """ # #????????? | | " ## """ " " # #????????? | | " ## """ "G" # #????????? | | " ## """ # #????????? | | ## # % #????????? | | ###############+##; ;#;;######### #????????? | | #???????# ;=% @ #????# #????????? | | #???????# """ ;%= #????#######????????? | | #???????# """ *%! #???????????????????? | | #???????# """ !# ] #???????????????????? | | #???????# # "" " #???????????????????? | | ###???????# """ # ""S"" ]#???????????????????? | | ??????????# """ # """" #???????????????????? | | ??????????# """ # #???????????????????? | | ??????????# ###########???????????????????? | | ??????????##########?????????????????????????????? | | ?????????????????????????????????????????????????? | | ?????????????????????????????????????????????????? | | ?????????????????????????????????????????????????? | | ?????????????????????????????????????????????????? | | ?????????????????????????????????????????????????? | | ?????????????????????????????????????????????????? | | ?????????????????????????????????????????????????? | | ?????????????????????????????????????????????????? | | ?????????????????????????????????????????????????? | | ?????????????????????????????????????????????????? | | ?????????????????????????????????????????????????? | | ?????????????????????????????????????????????????? | | ?????????????????????????????????????????????????? | | ?????????????????????????????????????????????????? | | ?????????????????????????????????????????????????? | +----------------------------------------------------+ Best States ------------- Heat Dissipation 51 Energy Generation 31 Energy Capacity 500 Matter Stores 300 Matter Capacity 300 Sight Range 22 Terrain Scan Range 16 Terrain Scan Density 210 Armor Coverage 375 Evasion (%) 56 Melee Accuracy 12 Recoil Reduction 1 Offensive Hacking 10 Item Schematics ----------------- Actuator Array | -6/Factory | Scanalyzed Robot Schematics ------------------ None Fabricated ------------ Nothing Alien Tech Used ----------------- None Achievements -------------- Just Browsing Project G-00 Revising The Future Watch This! Challenges ------------ None Game ------ Seed TimingHardenedDissipator Manual? 0 Play Time 02:07:01 Cumulative 25.1 hours Start 2024.06.15 @ 04:08:20 End 2024.06.15 @ 06:20:43 Sessions 1 Manual Loads 0 Difficulty Rogue Special Mode None Game No. 33 Rogue 26 Adventurer 7 Explorer 0 Win Type - Total 1 Types 1/0/0/0/0/0/0/0/0 Lore% 10 Gallery% 26 Achievement% 27 Wizard Run 0 Options --------- Layout 0 ASCII 0 Keyboard 0 Movement Mouse Keybinds 0 Fullscreen 2 Font 24/Smallcaps Map View 113x50 Zoom Use 0% Tactical HUD 1 Map Filters NONE Filters NONE Steam 1 RUN: d2ec1518-89ee-48fa-ad49-58d02ae909c1